[Event "World Junior U20 Open 2018"]
[Site "Gebze"]
[Date "2018.09.13"]
[Round "9.33"]
[White "Garayev, Kanan"]
[Black "Pang, Tao"]
[Result "0-1"]
[ECO "D61"]
[WhiteElo "2404"]
[BlackElo "2290"]
[Annotator "NA"]
[PlyCount "86"]
[EventDate "2018.09.05"]
[EventType "swiss"]
[EventCountry "TUR"]
[SourceTitle "playchess.com"]
[Source "ChessBase"]
[SourceQuality "1"]
[TimeControl "40/5400+30:1800+30"]

1. d4 {[%emt 0:01:30]} d5 {[%emt 0:00:30]} 2. c4 {[%emt 0:00:30]} e6 {[%emt 0:00:00]} 3. Nc3 {[%emt 0:00:00]} Nf6 {[%emt 0:01:00]} 4. Nf3 {[%emt 0:00:00]} Be7 {[%emt 0:00:30]} 5. Bg5 {[%emt 0:01:30]} O-O {[%emt 0:01:00]} 6. e3 {[%emt 0:00:30]} Nbd7 {[%emt 0:04:30]} 7. Qc2 {[%emt 0:03:00]} c6 {[%emt 0:09:30]} 8. Rd1 {[%emt 0:02:30]} b6 {[%emt 0:09:30]} 9. Bd3 {[%emt 0:04:30]} h6 {[%emt 0:03:30] LiveBook: 9 Games D61: Damengambit (Hauptvariante mit 7.Dc2)} 10. Bf4 {[%emt 0:06:30]} Ba6 {[%emt 0:09:30]} 11. Qe2 {[%emt 0:06:30]} Bxc4 {[%emt 0:10:30]} 12. Bxc4 {[%emt 0:00:30]} dxc4 {[%emt 0:00:30]} 13. Qxc4 {[%emt 0:01:30] [#]} Qc8 $146 {[%emt 0:00:30]} ({Vorgänger:} 13... Nd5 14. Bg3 N7f6 15. Ne5 Bb4 16. Qd3 Rc8 17. O-O Nh5 18. Ne4 Be7 19. a3 Ndf6 20. Nxf6+ Bxf6 21. Qe4 Qd5 22. Qxd5 {½-½ (22) Mchedlishvili,M (2619)-Prohaszka,P (2512) Budva 2009}) 14. e4 {[%emt 0:02:30]} Qb7 {[%emt 0:02:30]} 15. O-O {[%emt 0:05:30]} b5 {[%emt 0:00:30]} 16. Qb3 {[%emt 0:36:00]} b4 {[%emt 0:08:30]} 17. e5 {[%emt 0:55:30]} Nd5 {[%emt 0:00:30]} 18. Nxd5 {[%emt 0:00:30]} cxd5 {[%emt 0:00:30]} 19. Qe3 {[%emt 0:07:30]} Kh7 {[%emt 0:08:30]} 20. Qd3+ {[%emt 0:00:30]} Kh8 {[%emt 0:01:30]} 21. h4 {[%emt 0:03:30]} Rfc8 {[%emt 0:02:30]} 22. g4 {[%emt 0:04:30]} Nf8 23. Kh1 {[%emt 1:18:30]} Qc6 {[%emt 1:18:30]} 24. Rd2 {[%emt 0:00:30]} Qc4 {[%emt 0:00:30]} 25. Qb1 {[%emt 0:00:30]} b3 {[%emt 0:00:30]} 26. a3 {[%emt 0:00:30]} Qa4 {[%emt 0:00:30]} 27. h5 {[%emt 0:00:30]} Rc2 {[%emt 0:00:30]} 28. Rg1 {[%emt 0:03:55]} Nh7 {[%emt 0:03:30]} 29. Qd1 {[%emt 0:02:59]} (29. Qe1 $142) 29... Rac8 {[%emt 0:00:30]} 30. Ne1 {[%emt 0:03:07]} Rxd2 {[%emt 0:03:33]} 31. Qxd2 {[%emt 0:00:30]} Bg5 {[%emt 0:02:54]} 32. Be3 $17 {[%emt 0:05:55]} Bxe3 {[%emt 0:04:26]} 33. Qxe3 {[%emt 0:00:33]} Ng5 {[%emt 0:03:43]} 34. f4 {[%emt 0:02:12]} Ne4 {[%emt 0:00:02]} 35. g5 {[%emt 0:00:10]} Qc4 {[%emt 0:00:44]} 36. gxh6 {[%emt 0:03:48]} gxh6 {[%emt 0:00:01]} 37. Nf3 {[%emt 0:01:29]} Qc2 {[%emt 0:01:04]} 38. Rg2 {[%emt 0:00:49]} Qb1+ {[%emt 0:01:07]} 39. Kh2 {[%emt 0:02:16]} Rc1 {[%emt 0:00:06]} 40. Kh3 {[%emt 0:00:26]} Rh1+ {[%emt 0:00:00]} 41. Kg4 {[%emt 0:02:51]} f5+ {[%emt 0:01:20]} 42. exf6 {[%emt 0:00:30]} Nxf6+ {[%emt 0:00:30]} 43. Kg3 {[%emt 0:00:30]} Nxh5+ {[%emt 0:00:00]} 0-1

[Event "World Junior U20 Open 2018"]
[Site "Gebze"]
[Date "2018.09.13"]
[Round "9.34"]
[White "Ozen, Bahadir"]
[Black "Macovei, Andrei"]
[Result "1/2-1/2"]
[ECO "E43"]
[WhiteElo "2326"]
[BlackElo "2385"]
[Annotator "NA"]
[PlyCount "108"]
[EventDate "2018.09.05"]
[EventType "swiss"]
[EventCountry "TUR"]
[SourceTitle "playchess.com"]
[Source "ChessBase"]
[SourceQuality "1"]
[TimeControl "40/5400+30:1800+30"]

1. d4 {[%emt 0:00:30]} Nf6 {[%emt 0:01:30]} 2. c4 {[%emt 0:00:30]} e6 {[%emt 0:01:30]} 3. Nc3 {[%emt 0:00:30]} Bb4 {[%emt 0:01:30]} 4. e3 {[%emt 0:00:30]} O-O {[%emt 0:01:30]} 5. Bd3 {[%emt 0:00:30]} c5 {[%emt 0:03:30]} 6. Nf3 {[%emt 0:00:30]} b6 {[%emt 0:03:30]} 7. O-O {[%emt 0:01:30]} Bxc3 {[%emt 0:01:30]} 8. bxc3 {[%emt 0:00:30]} Bb7 {[%emt 0:00:30]} 9. Nd2 {[%emt 0:14:30]} Nc6 {[%emt 0:04:30] LiveBook: 27 Games E43: Nimzo-Indian: Rubinstein: 4...b6} 10. Bb2 {[%emt 0:02:30]} (10. Re1 d6 11. f3 Rc8 12. Bb2 Ba6 13. Qe2 Qd7 14. e4 Na5 15. Rac1 e5 16. Nf1 Nh5 17. g3 {½-½ (53) Agdestein,S (2581)-Vitiugov,N (2734) Helsingor 2018}) 10... d6 {[%emt 0:07:30]} 11. e4 {[%emt 0:04:30]} e5 {[%emt 0:06:30]} 12. d5 {[%emt 0:02:30]} Ne7 {[%emt 0:00:30]} 13. g3 {[%emt 0:11:30]} Bc8 {[%emt 0:15:30]} 14. Re1 {[%emt 0:00:30]} Ng6 {[%emt 0:11:30]} 15. Nf1 {[%emt 0:02:30]} Bh3 $146 {[%emt 0:07:30]} ({Predecessor:} 15... h6 16. Ne3 Rb8 17. Bc1 Bd7 18. a4 {1-0 (37) Laliga,O (1957)-Klaus,E ICCF email 2014}) 16. Bc1 {[%emt 0:02:30]} h6 {[%emt 0:03:30]} 17. Ne3 {[%emt 0:01:30]} Qd7 {[%emt 0:00:30]} 18. a4 {[%emt 0:07:30]} Kh8 {[%emt 0:04:30]} 19. a5 {[%emt 0:02:30]} bxa5 {[%emt 0:01:30]} 20. Rxa5 {[%emt 0:01:30]} Ng4 {[%emt 1:24:38]} ({Lieber} 20... Qd8 $14 21. Qa4 Bd7) 21. Qa4 {[%emt 1:10:30]} Qc7 {[%emt 0:00:30]} 22. Ra6 {[%emt 0:00:30]} Nxe3 {[%emt 0:00:30]} 23. Bxe3 {[%emt 0:00:30]} Bc8 {[%emt 0:00:30]} 24. Rc6 {[%emt 0:00:30]} Qd8 {[%emt 0:02:15]} 25. Qa3 {[%emt 0:07:30]} Ne7 {[%emt 0:00:30]} 26. Rxd6 {[%emt 0:00:30]} Qxd6 {[%emt 0:00:30]} 27. Bxc5 {[%emt 0:00:30]} Qg6 {[%emt 0:00:30]} 28. Bxe7 {[%emt 0:00:30]} Re8 {[%emt 0:00:12]} 29. Bd6 {[%emt 0:03:30]} Bh3 {[%emt 0:01:48]} 30. c5 {[%emt 0:03:24]} Qg4 {[%emt 0:01:10]} 31. Qa4 {[%emt 0:01:24]} Qf3 {[%emt 0:00:46]} 32. Bf1 {[%emt 0:00:02]} Bxf1 {[%emt 0:01:28]} 33. Rxf1 {[%emt 0:02:36]} Qxc3 {[%emt 0:00:01]} 34. c6 {[%emt 0:00:27]} a5 {[%emt 0:00:19]} 35. Ba3 {[%emt 0:02:09]} h5 {[%emt 0:01:48]} 36. h4 {[%emt 0:02:06]} f5 {[%emt 0:01:07]} 37. Rc1 {[%emt 0:02:27]} Qf3 {[%emt 0:01:02]} 38. Bc5 {[%emt 0:00:16]} f4 {[%emt 0:00:50]} 39. Qd1 {[%emt 0:00:23]} Qxe4 {[%emt 0:00:15]} 40. Qxh5+ {[%emt 0:00:59]} Kg8 {[%emt 0:00:00]} 41. Rd1 {[%emt 0:06:47]} fxg3 {[%emt 0:18:51]} 42. Qg5 {[%emt 0:07:30]} gxf2+ {[%emt 0:03:51]} 43. Bxf2 {[%emt 0:00:00]} Rad8 {[%emt 0:03:55]} 44. Qg2 {[%emt 0:03:00]} Qc2 {[%emt 0:01:06]} 45. Ra1 {[%emt 0:02:30]} e4 {[%emt 0:07:33]} 46. Rxa5 {[%emt 0:00:00]} Qd1+ {[%emt 0:01:51]} 47. Kh2 {[%emt 0:00:00]} Rxd5 {[%emt 0:01:24]} 48. Ra7 {[%emt 0:00:30]} g5 {[%emt 0:00:21]} 49. Be3 {[%emt 0:02:30]} Qf3 {[%emt 0:01:51]} 50. Qa2 {[%emt 0:00:30]} Kh8 {[%emt 0:01:19]} 51. Qxd5 $11 {[%emt 0:00:30]} Qe2+ {[%emt 0:00:10]} 52. Kh1 {[%emt 0:00:30]} Qf3+ {[%emt 0:00:30]} 53. Kh2 {[%emt 0:00:30]} Qe2+ {[%emt 0:00:06]} 54. Kh1 {[%emt 0:00:00]} Qf3+ {[%emt 0:00:00]} 1/2-1/2

[Event "World Junior U20 Open 2018"]
[Site "Gebze"]
[Date "2018.09.13"]
[Round "9.35"]
[White "Gorshtein, Ido"]
[Black "Agibileg, Uurtsaikh"]
[Result "1-0"]
[ECO "B20"]
[WhiteElo "2383"]
[BlackElo "2321"]
[Annotator "NA"]
[PlyCount "93"]
[EventDate "2018.09.05"]
[EventType "swiss"]
[EventCountry "TUR"]
[SourceTitle "playchess.com"]
[Source "ChessBase"]
[SourceQuality "1"]
[TimeControl "40/5400+30:1800+30"]

1. e4 {[%emt 0:00:30]} c5 {[%emt 0:00:30]} 2. Ne2 {[%emt 0:00:00]} e5 {[%emt 0:00:30]} 3. Nbc3 {[%emt 0:01:00]} Nf6 {[%emt 0:01:30]} 4. d3 {[%emt 0:00:30]} h6 {[%emt 0:02:30]} 5. g3 {[%emt 0:05:30]} d5 {[%emt 0:00:30]} 6. exd5 {[%emt 0:00:30]} Nxd5 {[%emt 0:00:30]} 7. Bg2 {[%emt 0:00:00]} Be6 {[%emt 0:00:30]} 8. O-O {[%emt 0:00:00]} Nc6 {[%emt 0:01:00]} 9. f4 {[%emt 0:01:30]} Nxc3 {[%emt 0:02:30]} 10. bxc3 {[%emt 0:13:30]} Bd5 {[%emt 0:03:30]} 11. Bh3 {[%emt 0:04:30]} c4 {[%emt 0:08:30] [#]} (11... Bd6 $142) 12. fxe5 $1 {[%emt 0:01:30]} Nxe5 {[%emt 0:06:30] [#]} 13. Nf4 $1 {[%emt 0:00:30]} Bc6 {[%emt 0:03:30]} 14. d4 {[%emt 0:00:30]} Be7 {[%emt 0:16:30]} 15. Qe2 {[%emt 0:02:30]} Nf3+ {[%emt 0:06:30]} 16. Rxf3 {[%emt 0:00:30]} Bxf3 {[%emt 0:00:30]} 17. Qxf3 {[%emt 0:00:30]} O-O {[%emt 0:00:30]} 18. Bd2 {[%emt 0:00:30]} b6 {[%emt 0:55:00]} 19. Re1 {[%emt 0:00:30]} Re8 {[%emt 0:00:30]} 20. Rf1 {[%emt 0:00:30]} Bg5 {[%emt 0:00:30]} 21. Bg2 {[%emt 0:00:30]} Rc8 {[%emt 0:00:30]} 22. h4 {[%emt 0:00:30]} Bxf4 {[%emt 0:00:30]} 23. Bxf4 {[%emt 0:00:30]} Qf6 {[%emt 0:06:30]} 24. Qg4 {[%emt 0:01:30]} Qg6 {[%emt 0:00:30]} 25. Qxg6 {[%emt 0:00:30]} fxg6 {[%emt 0:00:30]} 26. Bd5+ {[%emt 0:00:30]} Kh7 {[%emt 0:00:30]} 27. Be5 {[%emt 0:00:30]} Rf8 {[%emt 0:00:30]} 28. Rxf8 {[%emt 0:03:30]} Rxf8 {[%emt 0:00:30]} 29. Bxc4 {[%emt 0:00:30]} Rc8 {[%emt 0:01:00]} 30. Bd3 {[%emt 0:00:00]} Rxc3 {[%emt 0:00:00]} 31. h5 {[%emt 0:01:00]} Kg8 {[%emt 0:00:00]} 32. hxg6 {[%emt 0:01:30]} b5 {[%emt 0:02:30]} 33. Bxb5 {[%emt 0:01:30]} Rxc2 {[%emt 0:01:30]} 34. Be8 {[%emt 0:00:30]} a5 {[%emt 1:11:00]} 35. a4 {[%emt 0:44:30]} (35. Bf7+ $142 Kh8 36. Kf1) 35... Kh8 {[%emt 0:01:30]} 36. Kf1 {[%emt 0:00:30]} h5 {[%emt 0:00:30]} 37. d5 {[%emt 0:00:30]} Rc5 {[%emt 0:00:30]} 38. Bc6 {[%emt 0:00:30]} Kg8 {[%emt 0:00:30]} 39. Ke2 {[%emt 0:00:30]} Kh8 {[%emt 0:00:30]} 40. Kd3 {[%emt 0:00:30]} h4 {[%emt 0:00:00]} 41. Kd4 {[%emt 0:03:30]} Rc1 {[%emt 0:01:00]} 42. gxh4 {[%emt 0:00:00]} Kg8 {[%emt 0:01:30]} 43. h5 {[%emt 0:01:00]} Rh1 {[%emt 0:00:30]} 44. d6 {[%emt 0:01:30]} Rh4+ {[%emt 0:01:30]} 45. Kd5 {[%emt 0:00:30]} Kf8 {[%emt 0:00:00]} 46. Ke6 {[%emt 0:00:00]} Rc4 {[%emt 0:01:00]} 47. d7 {[%emt 0:00:00]} 1-0

[Event "World Junior U20 Open 2018"]
[Site "Gebze"]
[Date "2018.09.13"]
[Round "9.36"]
[White "Gunduz, Umut Erdem"]
[Black "Zou, Chen"]
[Result "0-1"]
[ECO "B55"]
[WhiteElo "2119"]
[BlackElo "2365"]
[Annotator "NA"]
[PlyCount "96"]
[EventDate "2018.09.05"]
[EventType "swiss"]
[EventCountry "TUR"]
[SourceTitle "playchess.com"]
[Source "ChessBase"]
[SourceQuality "1"]
[TimeControl "40/5400+30:1800+30"]

1. e4 {[%emt 0:00:30]} c5 {[%emt 0:00:30]} 2. Nf3 {[%emt 0:00:30]} d6 {[%emt 0:00:30]} 3. d4 {[%emt 0:00:00]} cxd4 {[%emt 0:00:00]} 4. Nxd4 {[%emt 0:00:00]} Nf6 {[%emt 0:00:00]} 5. f3 {[%emt 0:00:00]} e5 {[%emt 0:00:00]} 6. Nb3 {[%emt 0:00:00]} d5 {[%emt 0:00:00]} 7. Bg5 {[%emt 0:00:00]} Be6 {[%emt 0:00:00]} 8. Bxf6 {[%emt 0:05:00]} gxf6 {[%emt 0:00:00]} 9. exd5 {[%emt 0:00:30]} Qxd5 {[%emt 0:00:30]} 10. Qxd5 {[%emt 0:00:00]} Bxd5 {[%emt 0:00:30]} 11. Nc3 {[%emt 0:00:00]} Be6 {[%emt 0:00:00]} 12. O-O-O {[%emt 0:07:30] B55: Sicilian: 2...d6 3 d4 cxd4 4 Nxd4 Nf6 5 f3} Nc6 {[%emt 0:00:00]} 13. Bb5 {[%emt 0:13:30]} Rc8 {[%emt 0:00:00] [#]} 14. Ne4 $146 {[%emt 0:06:30]} ({Predecessor:} 14. Nd5 f5 15. Na5 Bh6+ 16. Kb1 Kf8 17. Nb3 Kg7 18. Rhe1 Rhd8 19. Nc3 Rxd1+ 20. Nxd1 {0-1 (56) Harikrishna,P (2758)-Giri,A (2769) Shenzhen 2017}) 14... Ke7 {[%emt 0:03:00]} 15. c3 {[%emt 0:14:30]} a6 {[%emt 0:17:30]} 16. Be2 {[%emt 0:02:30]} Bh6+ {[%emt 0:01:30]} 17. Kb1 {[%emt 0:02:30]} Rcd8 {[%emt 0:00:30]} 18. Nbc5 {[%emt 0:07:30]} Bc8 {[%emt 0:01:30]} 19. g4 {[%emt 0:02:30]} Be3 {[%emt 0:26:30]} 20. Bc4 {[%emt 0:03:30]} Rxd1+ {[%emt 0:00:30]} 21. Rxd1 {[%emt 0:00:30]} h5 {[%emt 0:00:30]} 22. h3 {[%emt 0:03:30]} Na5 {[%emt 0:48:00]} 23. Bd5 {[%emt 0:01:30]} f5 {[%emt 0:10:30]} 24. gxf5 {[%emt 0:05:30]} Bxf5 {[%emt 0:01:30]} 25. Nd3 {[%emt 0:02:30]} f6 {[%emt 0:07:30]} 26. Re1 {[%emt 0:12:08]} Rd8 {[%emt 0:01:30]} 27. c4 {[%emt 1:31:00]} Bd4 {[%emt 1:07:30]} 28. b4 {[%emt 0:00:30]} Nc6 {[%emt 0:00:30]} 29. Kc1 {[%emt 0:01:36]} h4 {[%emt 0:09:30]} 30. f4 {[%emt 0:01:19]} Bxh3 {[%emt 0:11:20]} 31. fxe5 {[%emt 0:00:07]} Nxe5 {[%emt 0:03:43]} 32. Nf4 {[%emt 0:06:02]} Bc8 {[%emt 0:01:50]} 33. Kc2 {[%emt 0:00:19]} h3 {[%emt 0:02:45]} 34. Nh5 {[%emt 0:04:06]} Nf3 {[%emt 0:06:37]} 35. Rf1 {[%emt 0:00:47]} Nh2 {[%emt 0:00:55]} 36. Re1 {[%emt 0:01:31]} Bf5 {[%emt 0:01:26]} 37. Nhg3 {[%emt 0:00:30]} Bg6 {[%emt 0:00:00]} 38. Rh1 {[%emt 0:00:26]} Ng4 {[%emt 0:01:19]} 39. Bxb7 {[%emt 0:00:44]} h2 {[%emt 0:00:45]} 40. Kb3 {[%emt 0:00:39]} f5 {[%emt 0:00:00]} 41. Nc3 {[%emt 0:08:54]} Be5 {[%emt 0:08:20]} 42. Nge2 {[%emt 0:04:49]} Rd3 {[%emt 0:00:00]} 43. Rd1 {[%emt 0:10:23]} Rh3 {[%emt 0:08:24]} 44. Rf1 {[%emt 0:04:40]} Ne3 {[%emt 0:02:07]} 45. Re1 {[%emt 0:02:04]} Bf7 {[%emt 0:01:32]} 46. Ka4 {[%emt 0:01:48]} Bxc4 $19 {[%emt 0:00:17]} 47. Bh1 {[%emt 0:00:41]} Bxe2 {[%emt 0:02:02]} 48. Nxe2 {[%emt 0:00:39]} Nc2 {[%emt 0:00:04]} 0-1

[Event "World Junior U20 Open 2018"]
[Site "Gebze"]
[Date "2018.09.13"]
[Round "9.41"]
[White "Nikolovski, Nikola"]
[Black "Agdelen, Huseyin Can"]
[Result "1/2-1/2"]
[ECO "B97"]
[WhiteElo "2388"]
[BlackElo "2280"]
[Annotator "NA"]
[PlyCount "60"]
[EventDate "2018.09.05"]
[EventType "swiss"]
[EventCountry "TUR"]
[SourceTitle "playchess.com"]
[Source "ChessBase"]
[SourceQuality "1"]
[TimeControl "40/5400+30:1800+30"]

1. e4 {[%emt 0:00:30]} c5 {[%emt 0:00:30]} 2. Nf3 {[%emt 0:00:00]} d6 {[%emt 0:00:00]} 3. d4 {[%emt 0:00:00]} cxd4 {[%emt 0:00:00]} 4. Nxd4 {[%emt 0:00:30]} Nf6 {[%emt 0:00:30]} 5. Nc3 {[%emt 0:00:30]} a6 {[%emt 0:00:00]} 6. Bg5 {[%emt 0:00:30]} e6 {[%emt 0:00:00]} 7. f4 {[%emt 0:00:00]} h6 {[%emt 0:00:00]} 8. Bh4 {[%emt 0:00:00]} Qb6 {[%emt 0:00:00]} 9. Qd2 {[%emt 0:02:30]} Qxb2 {[%emt 0:02:30]} 10. Rb1 {[%emt 0:00:30]} Qa3 {[%emt 0:00:00]} 11. e5 {[%emt 0:00:30]} dxe5 {[%emt 0:00:00] B97: Sicilian Najdorf: Poisoned Pawn} 12. fxe5 {[%emt 0:00:30]} Nfd7 {[%emt 0:00:30]} 13. Ne4 {[%emt 0:00:30]} Qxa2 {[%emt 0:00:00]} 14. Rd1 {[%emt 0:01:30]} Qd5 {[%emt 0:01:00]} 15. Qe3 {[%emt 0:00:30]} Qxe5 {[%emt 0:00:30]} 16. Be2 {[%emt 0:01:30]} Bc5 {[%emt 0:00:00]} 17. Bg3 {[%emt 0:00:30]} Qd5 {[%emt 0:00:00]} 18. c4 {[%emt 0:01:30]} Bxd4 {[%emt 0:01:30]} 19. Rxd4 {[%emt 0:00:30] [#]} Qa5+ $146 {[%emt 0:00:00]} 20. Rd2 $1 {[%emt 0:00:30]} O-O {[%emt 0:00:00]} 21. Bd6 {[%emt 0:01:30]} f5 {[%emt 0:00:30]} 22. Bxf8 {[%emt 0:06:30]} Nxf8 {[%emt 0:01:30]} ({Not} 22... Kxf8 23. Nd6 $18) 23. Nd6 {[%emt 0:00:30]} Nbd7 {[%emt 0:00:30]} 24. g4 {[%emt 0:07:30]} fxg4 {[%emt 0:00:30]} 25. Bxg4 {[%emt 0:10:30]} Qa1+ $11 {[%emt 0:06:30]} 26. Rd1 {[%emt 0:05:30]} Qa5+ {[%emt 0:00:30]} 27. Rd2 {[%emt 0:00:00]} Qa1+ {[%emt 0:08:30]} 28. Rd1 {[%emt 0:02:00]} Qa5+ {[%emt 0:00:30]} 29. Rd2 {[%emt 0:00:00]} Qa1+ {[%emt 0:00:00]} 30. Rd1 {[%emt 0:00:00]} Qa5+ {[%emt 0:00:00]} 1/2-1/2

[Event "World Junior U20 Open 2018"]
[Site "Gebze"]
[Date "2018.09.13"]
[Round "9.42"]
[White "Suleymenov, Alisher"]
[Black "Agmanov, Zhandos"]
[Result "1/2-1/2"]
[ECO "E08"]
[WhiteElo "2307"]
[BlackElo "2379"]
[Annotator "NA"]
[PlyCount "91"]
[EventDate "2018.09.05"]
[EventType "swiss"]
[EventCountry "TUR"]
[SourceTitle "playchess.com"]
[Source "ChessBase"]
[SourceQuality "1"]
[TimeControl "40/5400+30:1800+30"]

1. d4 {[%emt 0:00:30]} Nf6 {[%emt 0:00:30]} 2. c4 {[%emt 0:00:30]} e6 {[%emt 0:00:00]} 3. g3 {[%emt 0:00:00]} d5 {[%emt 0:00:00]} 4. Nf3 {[%emt 0:00:00]} Bb4+ {[%emt 0:00:30]} 5. Bd2 {[%emt 0:00:00]} Be7 {[%emt 0:00:00]} 6. Bg2 {[%emt 0:00:00]} O-O {[%emt 0:00:00]} 7. O-O {[%emt 0:00:30]} c6 {[%emt 0:00:30]} 8. Qc2 {[%emt 0:00:00]} Nbd7 {[%emt 0:04:30]} 9. Rd1 {[%emt 0:00:00]} b6 {[%emt 0:01:30]} 10. Bf4 {[%emt 0:04:30]} Ba6 {[%emt 0:01:30] E08: Closed Catalan: Main Line: 7 Qc2} (10... Bb7 11. Ne5 Rc8 12. Nc3 Nh5 13. Bc1 Nhf6 14. e4 Bb4 15. Bg5 Qc7 16. Nxd7 Nxd7 17. a3 Bxc3 18. Qxc3 dxc4 19. Bf4 Qd8 20. Bd6 {0-1 (76) Dominguez Perez,L (2739)-Caruana,F (2822) Saint Louis 2018}) 11. Ne5 {[%emt 0:04:30]} Rc8 {[%emt 0:08:30]} 12. Nc3 {[%emt 0:06:30]} Nh5 {[%emt 0:06:30]} 13. Bc1 {[%emt 0:23:30]} Nhf6 {[%emt 0:00:30] LiveBook: 12 Games} 14. Bf4 {[%emt 0:03:30]} b5 {[%emt 0:18:30]} 15. c5 {[%emt 0:46:30] [#]} Nxe5 $146 {[%emt 0:15:30]} ({Predecessor:} 15... b4 16. Na4 Nxe5 17. Bxe5 Nd7 18. Bf4 Re8 19. a3 b3 20. Qxb3 Bxe2 {0-1 (70) Ernst,S (2530)-Kovalenko,I (2661) Moscow 2015}) 16. dxe5 {[%emt 0:01:30]} Nd7 $1 {[%emt 0:01:30]} 17. b4 {[%emt 0:01:30]} g5 {[%emt 0:01:30]} 18. Bc1 Nxe5 19. a4 {[%emt 0:55:30]} bxa4 {[%emt 1:02:30]} 20. Rxa4 {[%emt 0:00:30]} Bc4 {[%emt 0:00:30]} 21. Rxa7 {[%emt 0:00:30]} Ra8 {[%emt 0:12:30]} 22. Rxa8 {[%emt 0:09:30]} Qxa8 {[%emt 0:00:30]} 23. Bb2 {[%emt 1:19:30]} Qb8 {[%emt 1:20:30]} 24. Na4 {[%emt 0:02:30]} Nd7 {[%emt 0:08:34]} 25. Bc3 {[%emt 0:00:30]} Bb5 {[%emt 0:07:29]} 26. Nb2 {[%emt 0:04:16]} (26. e4 $1 $14) 26... Bf6 {[%emt 0:01:40]} 27. Bxf6 {[%emt 0:12:38]} Nxf6 {[%emt 0:00:01]} 28. Qc3 {[%emt 0:00:29]} Nd7 {[%emt 0:00:01]} 29. Nd3 {[%emt 0:00:00]} Re8 {[%emt 0:02:40]} 30. Qd2 {[%emt 0:03:41]} Qd8 {[%emt 0:00:05]} 31. Ra1 {[%emt 0:00:24]} Qf6 {[%emt 0:00:32]} 32. Ra7 {[%emt 0:00:20]} Rd8 {[%emt 0:01:16]} 33. h3 {[%emt 0:00:33]} h6 {[%emt 0:00:15]} 34. e3 {[%emt 0:00:57]} Qf5 {[%emt 0:02:02]} 35. Ne1 {[%emt 0:00:57]} Ne5 {[%emt 0:00:32]} 36. Qd4 {[%emt 0:00:29]} Nc4 {[%emt 0:00:44]} 37. g4 {[%emt 0:00:29]} Qe5 {[%emt 0:00:23]} 38. Nf3 {[%emt 0:00:09]} Qb8 {[%emt 0:01:37]} 39. Qf6 {[%emt 0:00:44]} Qxa7 {[%emt 0:00:47]} 40. Qxd8+ {[%emt 0:00:30]} Kg7 {[%emt 0:00:00]} 41. Nd4 {[%emt 0:09:24]} Qa1+ {[%emt 0:08:22]} 42. Kh2 $11 {[%emt 0:00:30]} Qe1 {[%emt 0:02:30]} 43. Qe7 {[%emt 0:04:46]} Qxf2 {[%emt 0:00:30]} 44. Nxe6+ {[%emt 0:00:39]} Kh7 {[%emt 0:00:00]} 45. Nf4 {[%emt 0:10:29]} gxf4 {[%emt 0:04:58]} 46. Qxf7+ {[%emt 0:00:18]} 1/2-1/2

[Event "World Junior U20 Open 2018"]
[Site "Gebze"]
[Date "2018.09.13"]
[Round "9.43"]
[White "Miciano, John Marvin"]
[Black "Zhao, Chenxi"]
[Result "0-1"]
[ECO "B40"]
[WhiteElo "2374"]
[BlackElo "2275"]
[Annotator "ChessBase"]
[PlyCount "103"]
[EventDate "2018.09.05"]
[EventType "swiss"]
[EventCountry "TUR"]
[SourceTitle "playchess.com"]
[Source "ChessBase"]
[SourceQuality "1"]
[TimeControl "40/5400+30:1800+30"]

1. e4 c5 2. Nf3 e6 3. g3 Nc6 4. Bg2 Nf6 5. Qe2 d5 6. exd5 Nxd5 7. O-O Be7 8. Rd1 Bf6 9. Nc3 Ndb4 10. d3 Nd4 11. Nxd4 cxd4 12. Ne4 Be7 13. c3 Nc6 14. Nd2 Bf6 15. c4 O-O 16. Rb1 a5 17. b3 Re8 18. a3 Be7 19. f4 Bc5 20. Re1 Bd7 21. Qh5 Bf8 22. Ne4 f6 23. Bb2 Qb6 24. Nd2 Ne7 25. Qf3 Nc6 26. Kh1 Rad8 27. Qf2 Bc8 28. Re2 Ne7 29. g4 Ng6 30. Rbe1 Qc7 31. Re4 Bc5 {[%emt 1:41:35]} 32. Bc1 {[%emt 1:12:00]} Rf8 {[%emt 0:00:30]} 33. Nf1 {[%emt 0:00:30]} Qb6 {[%emt 0:00:30]} 34. Nd2 {[%emt 0:00:30]} Qd6 {[%emt 0:03:00]} 35. f5 {[%emt 0:04:30]} exf5 {[%emt 0:00:30]} 36. gxf5 {[%emt 0:00:30]} Ne5 {[%emt 0:00:30]} 37. Rxe5 {[%emt 0:00:30]} fxe5 {[%emt 0:00:30]} 38. Bd5+ {[%emt 0:00:30]} Be6 {[%emt 0:00:28]} 39. Be4 {[%emt 0:00:00]} Rf6 {[%emt 0:00:00]} 40. Rg1 {[%emt 0:00:00]} Qf8 {[%emt 0:00:00]} 41. Qg3 {[%emt 0:13:30]} Bxf5 {[%emt 0:07:57]} 42. Bxf5 {[%emt 0:00:30]} Rxf5 {[%emt 0:00:30]} 43. Ne4 {[%emt 0:01:30]} Rf1 {[%emt 0:04:30]} 44. Kg2 {[%emt 0:01:30]} Rxg1+ {[%emt 0:00:30]} 45. Kxg1 {[%emt 0:00:30]} Re8 {[%emt 0:00:30]} 46. Qg4 {[%emt 0:02:30]} b6 {[%emt 0:00:30]} 47. a4 {[%emt 0:01:30]} Qf7 {[%emt 0:01:30]} 48. Bg5 {[%emt 0:00:30]} Rf8 {[%emt 0:00:30]} 49. h4 {[%emt 0:00:30]} Be7 {[%emt 0:00:41]} 50. Bh6 {[%emt 0:00:30]} Qg6 {[%emt 0:00:30]} 51. Bg5 {[%emt 0:00:30]} Bxg5 {[%emt 0:00:30]} 52. hxg5 {[%emt 0:23:30]} 0-1